bitfinex-derivatives/quotes_ETHF0:USTF0_20250708
["timestamp","ask_amount","ask_price","bid_price","bid_amount"]
[1752006109316,28.76939307,2606.5,2606.4,2.45823]
[1752006109617,29.53659307,2606.5,2606.4,2.45823]
[1752006109819,0.76717,2606.6,2606.5,0.7672]
[1752006110015,26.86917,2606.6,2606.5,0.7672]
[1752006110213,26.86917,2606.6,2606.5,2.4582]
[1752006110617,27.54877,2606.6,2606.5,2.4582]
[1752006111120,27.54677,2606.6,2606.5,2.4582]
[1752006112212,1.44677,2606.6,2606.5,2.4582]
[1752006113620,1.44677,2606.6,2606.5,2.4229]
[1752006114120,0.6796,2606.6,2606.5,2.4229]
[1752006115318,26.86611,2606.8,2606.7,0.76711]
[1752006115518,26.7786,2606.8,2606.7,0.76711]
[1752006115820,28.85239307,2606.9,2606.8,0.76711]
[1752006116022,29.53199307,2606.9,2606.8,0.76711]
[1752006116216,28.85239307,2606.9,2606.8,0.76711]
[1752006116418,29.53199307,2606.9,2606.8,0.76711]
[1752006117721,3.43299307,2606.9,2606.8,0.76711]
[1752006117920,29.53199307,2606.9,2606.8,0.76711]
[1752006118820,29.53199307,2606.9,2606.8,1.40421]
[1752006120321,1.31939307,2606.9,2606.8,2.42281]
[1752006120528,58.6963404,2607.3,2607.2,0.76699]
[1752006120721,82.78446,2607.3,2607.2,1.40409]
[1752006121025,1.40546,2607.3,2607.2,1.40409]
[1752006121224,27.50146,2607.3,2607.2,1.40409]
[1752006121419,26.7345,2607.3,2607.2,1.40409]
[1752006121614,27.4141,2607.3,2607.2,2.42269]
[1752006122623,28.18106,2607.3,2607.2,2.42269]
[1752006123123,27.4141,2607.3,2607.2,2.42269]
[1752006123626,27.4141,2607.3,2607.2,1.40409]
[1752006124628,28.18106,2607.3,2607.2,1.40409]
[1752006124925,1.3181,2607.3,2607.2,2.42269]
[1752006125127,26.7736,2607.3,2607.2,2.42269]
[1752006125316,0.6796,2607.3,2607.2,2.42269]
[1752006126122,1.31939307,2607.4,2607.3,0.76696]
[1752006126428,1.31939307,2607.4,2607.3,2.42266]
[1752006127326,1.99899307,2607.4,2607.3,0.6371]
[1752006127528,2.76595307,2607.4,2607.3,1.40402]
[1752006133633,4.09766307,2607.7,2607.3,3.57307]
[1752006133827,30.18666307,2607.7,2607.6,0.76687]
[1752006134028,30.09939307,2607.7,2607.4,1.7108]
[1752006134326,0.76687,2607.6,2607.5,0.76688]
[1752006134628,0.76687,2607.6,2607.5,1.40398]
[1752006134629,1.44647,2607.6,2607.5,1.40398]
[1752006135029,0.67,2607.7,2607.6,0.76687]
[1752006135231,0.76681,2607.9,2607.8,0.76678]
[1752006135535,0.76681,2607.9,2607.8,1.40388]
[1752006135830,1.44641,2607.9,2607.8,1.40388]
[1752006136430,0.6796,2607.9,2607.8,2.42248]
[1752006137333,5.96846307,2608.0,2607.9,0.76678]
[1752006137534,5.96846307,2608.0,2607.9,1.40388]
[1752006137935,2.76066307,2608.0,2607.9,1.40388]
[1752006138137,3.44026307,2608.0,2607.9,1.40388]
[1752006139536,3.44026307,2608.0,2607.9,2.42248]
[1752006141235,3.44026307,2608.0,2607.9,0.76678]
[1752006141538,3.44026307,2608.0,2607.9,1.42828]
[1752006143935,28.75749307,2608.0,2607.9,1.42828]
[1752006144138,3.2078,2608.3,2608.0,1.91686]
[1752006144331,29.9205,2608.3,2608.2,1.4282]
[1752006144537,26.7127,2608.3,2608.2,1.4282]
[1752006144737,0.6287,2608.3,2608.2,1.4282]
[1752006147845,0.6695,2608.4,2608.3,0.76667]
[1752006148239,1.31939307,2608.6,2608.3,1.44167]
[1752006148444,28.81608307,2608.6,2608.5,0.76661]
[1752006148634,29.44478307,2608.6,2608.5,0.76661]
[1752006149440,29.44478307,2608.6,2608.5,1.42811]
[1752006149841,1.2778,2608.6,2608.5,1.42811]
[1752006150048,1.2778,2608.6,2608.5,2.41581]
[1752006150742,1.2778,2608.6,2608.5,0.76661]
[1752006150950,0.76663,2608.5,2608.4,0.76661]
[1752006151143,1.9628,2608.6,2608.5,0.76661]
[1752006151344,3.3581,2608.6,2608.5,1.42811]
[1752006151543,3.3581,2608.6,2608.5,0.76661]
[1752006151748,2.5915,2608.6,2608.5,1.42811]
[1752006152047,3.35808,2608.6,2608.5,0.76661]
[1752006152249,4.67747307,2608.6,2608.5,0.76661]
[1752006152449,4.67747307,2608.6,2608.5,1.42811]
[1752006154251,3.35808,2608.6,2608.5,1.42811]
[1752006154451,4.67747307,2608.6,2608.5,1.42811]
[1752006156147,3.91089307,2608.6,2608.5,1.42811]
[1752006156350,4.67747307,2608.6,2608.5,1.42811]
[1752006156951,3.91089307,2608.6,2608.5,1.42811]
[1752006157854,4.67747307,2608.6,2608.5,1.42811]
[1752006158053,3.91089307,2608.6,2608.5,1.42811]
[1752006158962,1.96849307,2608.6,2608.5,2.41581]
[1752006159258,3.36377307,2608.6,2608.5,1.42811]
[1752006159456,4.71737307,2608.6,2608.5,1.42811]
[1752006159657,5.74947307,2608.6,2608.5,0.76661]
[1752006159855,4.43008,2608.6,2608.5,0.76661]
[1752006160061,5.74947307,2608.6,2608.5,1.42811]
[1752006160852,4.71737307,2608.6,2608.5,1.42811]
[1752006161258,3.95079307,2608.6,2608.5,1.42811]
[1752006161660,1.96849307,2608.6,2608.5,1.42811]
[1752006161864,3.36377307,2608.6,2608.5,1.42811]
[1752006162061,1.96849307,2608.6,2608.5,1.42811]
[1752006162262,1.31939307,2608.7,2608.6,0.76658]
[1752006162561,1.94809307,2608.7,2608.6,1.42808]
[1752006162961,1.31939307,2608.7,2608.6,1.42808]
[1752006163255,1.94809307,2608.7,2608.6,1.42808]
[1752006163459,1.31939307,2608.7,2608.6,1.42808]
[1752006163658,1.94809307,2608.7,2608.6,1.42808]
[1752006164362,2.71464307,2608.7,2608.6,1.42808]
[1752006168271,0.6287,2608.7,2608.6,3.09258]
[1752006169363,1.96989307,2608.8,2608.7,0.76655]
[1752006169568,1.96989307,2608.8,2608.7,2.41575]
[1752006170064,2.59859307,2608.8,2608.7,2.41575]
[1752006170469,2.73641307,2608.8,2608.7,1.42805]
[1752006170759,3.41781307,2608.8,2608.7,0.76655]
[1752006171069,3.41781307,2608.8,2608.7,1.40115]
[1752006173370,2.73641307,2608.8,2608.7,1.40115]
[1752006173568,3.41781307,2608.8,2608.7,1.40115]
[1752006174971,2.65129307,2608.8,2608.7,1.40115]
[1752006175172,3.41781307,2608.8,2608.7,1.40115]
[1752006175873,3.41781307,2608.8,2608.7,0.76655]
[1752006176075,3.41781307,2608.8,2608.7,1.40115]
[1752006177676,1.41702,2608.8,2608.7,1.40115]
[1752006177871,2.73641307,2608.8,2608.7,0.76655]
[1752006178177,3.41781307,2608.8,2608.7,0.6346]
[1752006178377,8.17565347,2608.8,2608.7,0.6346]
[1752006179575,0.76658,2608.6,2608.5,3.97439]
[1752006179775,2.76737307,2608.6,2608.5,3.97439]
[1752006180370,4.11087307,2608.6,2608.5,3.97439]
[1752006180571,4.11087307,2608.6,2608.5,3.2078]
[1752006180873,5.05917307,2608.6,2608.5,4.60901]
[1752006181177,4.11087307,2608.6,2608.5,4.60901]
[1752006184170,4.11087307,2608.6,2608.5,3.2078]
[1752006184374,30.1667404,2608.6,2608.5,1.40121]
[1752006184575,27.51898,2608.6,2608.5,1.40121]
[1752006186275,3.4143404,2608.7,2608.6,0.76658]
[1752006186473,4.52273582,2609.1,2609.0,0.76646]
[1752006186671,26.071,2609.2,2609.1,0.76643]
[1752006186867,3.97418,2609.3,2609.2,0.7664]
[1752006187175,5.20859307,2609.3,2609.2,1.401]
[1752006187377,31.27959307,2609.3,2609.2,1.401]
[1752006187883,0.7664,2609.2,2609.1,1.41721]
[1752006188072,1.4478,2609.2,2609.1,1.41721]
[1752006188375,28.74339307,2609.3,2609.2,0.7664]
[1752006188574,26.071,2609.6,2609.3,1.91594]
[1752006188771,26.7524,2609.6,2609.5,1.40091]
[1752006188972,1.44768,2609.6,2609.4,0.76632]
[1752006189276,1.31939307,2609.5,2609.4,0.76634]
[1752006189466,2.00079307,2609.5,2609.4,1.40094]
[1752006189768,0.644,2609.8,2609.4,0.6346]
[1752006189974,0.644,2609.8,2609.7,0.76626]
[1752006190170,26.713,2609.8,2609.7,1.11334375]
[1752006190569,1.96339307,2609.8,2609.7,1.11334375]
[1752006190774,2.64479307,2609.8,2609.7,1.11334375]
[1752006191174,1.96339307,2609.8,2609.7,1.11334375]
[1752006191371,2.64479307,2609.8,2609.7,1.11334375]
[1752006192878,2.64479307,2609.8,2609.7,2.08504375]
[1752006193278,2.2237714,2610.3,2609.7,2.08504375]
[1752006193279,3.2078,2610.2,2609.8,0.76623]
[1752006193482,3.2078,2610.2,2610.0,0.76615]
[1752006193483,28.15154307,2610.1,2610.0,0.76615]
[1752006193678,28.83294307,2610.1,2610.0,1.40075]
[1752006194085,28.06679307,2610.1,2610.0,1.40075]
[1752006194581,28.83293307,2610.1,2610.0,1.40075]
[1752006194781,28.83793307,2610.1,2610.0,1.40075]
[1752006196075,28.83793307,2610.1,2609.7,1.91563]
[1752006196076,29.02009307,2610.1,2609.7,0.76624]
[1752006196273,0.76631,2609.6,2609.3,0.9717]
[1752006196478,27.51371,2609.6,2609.5,1.4009]
[1752006196781,28.83310307,2609.6,2609.5,1.4009]
[1752006198780,0.76634,2609.5,2609.4,0.76633]
[1752006198980,0.76636,2609.4,2609.3,0.76635]
[1752006199177,28.83715307,2609.4,2609.3,0.76635]
[1752006199480,0.76639,2609.3,2609.2,0.76639]
[1752006199679,2.73289,2609.3,2609.1,0.76641]
[1752006199884,28.16879307,2609.2,2609.1,0.76641]
[1752006200183,28.85019307,2609.2,2609.1,1.40101]
[1752006200579,28.85019307,2609.2,2609.1,0.6346]
[1752006200779,0.76646,2609.0,2608.9,1.39287]
[1752006200980,2.08585307,2609.0,2608.9,1.39287]
[1752006201182,28.79685307,2609.0,2608.9,2.08627]
[1752006201379,28.16885307,2609.0,2608.9,2.08627]
[1752006201580,28.03039307,2609.0,2608.9,2.08627]
[1752006202283,28.79685307,2609.0,2608.9,2.08627]
[1752006202482,28.79685307,2609.0,2608.9,3.03937]
[1752006202683,28.79685307,2609.0,2608.9,2.08627]
[1752006202878,28.03039307,2609.0,2608.9,2.08627]
[1752006203281,28.03039307,2609.0,2608.9,3.03937]
[1752006203479,28.79685307,2609.0,2608.9,2.08627]
[1752006204579,0.76649,2608.9,2608.8,0.7665]
[1752006204888,0.76652,2608.8,2608.7,1.40433]
[1752006205087,2.71391307,2608.8,2608.7,2.09773]
[1752006205279,28.79391307,2608.8,2608.7,2.09773]
[1752006205474,0.76655,2608.7,2608.6,0.76657]
[1752006205679,1.39455,2608.7,2608.6,1.45997]
[1752006205877,1.39455,2608.7,2608.6,0.6934]
[1752006206186,3.67895,2608.7,2608.6,0.6934]
[1752006206479,2.68825,2608.7,2608.6,1.45998]
[1752006206686,2.68825,2608.7,2608.6,0.6934]
[1752006207278,2.68825,2608.7,2608.6,1.45998]
[1752006207681,4.1985,2608.9,2608.7,0.76652]
[1752006207884,28.03939307,2608.8,2608.7,1.45992]
[1752006208086,27.41139307,2608.8,2608.7,1.45992]
[1752006208280,28.03939307,2608.8,2608.7,1.45992]
[1752006208474,28.80593307,2608.8,2608.7,1.45992]
[1752006208883,28.80593307,2608.8,2608.5,0.9531]
[1752006208884,0.76658,2608.7,2608.6,0.76656]
[1752006209080,1.39458,2608.7,2608.6,0.76656]
[1752006209282,28.17792307,2608.8,2608.7,0.76655]
[1752006209477,1.31939307,2608.8,2608.7,2.41305]
[1752006209677,27.40739307,2608.8,2608.7,2.41305]
[1752006209878,3.2078,2608.9,2608.8,0.76652]
[1752006210183,30.69129,2608.9,2608.8,2.41302]
[1752006210377,30.06329,2608.9,2608.8,2.41302]
[1752006210578,30.69129,2608.9,2608.8,2.41302]
[1752006210784,26.717,2608.9,2608.8,2.41302]
[1752006210982,27.48349,2608.9,2608.8,2.41302]
[1752006211383,26.717,2608.9,2608.8,2.41302]
[1752006211791,28.80288307,2608.9,2608.8,0.76652]
[1752006211984,28.80288307,2608.9,2608.8,1.45992]
[1752006212885,28.80288307,2608.9,2608.8,0.6934]
[1752006213387,28.80288307,2608.9,2608.8,1.45992]
[1752006213783,28.80288307,2608.9,2608.8,0.6934]
[1752006213990,0.76655,2608.7,2608.6,0.76656]
[1752006214191,28.80794307,2608.7,2608.6,1.45996]
[1752006214590,27.41339307,2608.7,2608.6,1.45996]
[1752006215096,28.17994307,2608.7,2608.6,1.45996]
[1752006215390,28.80794307,2608.7,2608.6,1.45996]
[1752006215590,28.17994307,2608.7,2608.6,1.45996]
[1752006215886,3.2078,2608.9,2608.8,0.76652]
[1752006216085,30.69629,2608.9,2608.8,1.45992]
[1752006216886,32.01568307,2608.9,2608.8,1.45992]
[1752006217081,32.02468307,2608.9,2608.8,0.76652]
[1752006217287,33.40468307,2608.9,2608.8,0.76652]
[1752006218088,33.40468307,2608.9,2608.8,1.45992]
[1752006219090,7.30168307,2608.9,2608.8,1.45992]
[1752006219291,33.40268307,2608.9,2608.8,1.45992]
[1752006219692,32.08229,2608.9,2608.8,1.45992]
[1752006221594,3.8358,2608.9,2608.8,1.45992]
[1752006221800,29.9328,2608.9,2608.8,1.45992]
[1752006221995,29.9328,2608.9,2608.8,2.41302]
[1752006222191,30.69929,2608.9,2608.8,2.41302]
[1752006223097,30.69929,2608.9,2608.8,1.45992]
[1752006224400,30.69529,2608.9,2608.8,1.45992]
[1752006225399,4.60229,2608.9,2608.8,1.45992]
[1752006225600,30.69229,2608.9,2608.8,1.45992]
[1752006226400,32.03869,2608.9,2608.8,0.6934]
[1752006226699,0.76652,2608.8,2608.7,0.76652]
[1752006226904,4.06031307,2608.8,2608.7,1.45992]
[1752006229798,0.7666,2608.7,2608.4,2.95458485]
[1752006229996,1.31939307,2608.6,2608.5,0.76661]
[1752006230197,2.00849307,2608.6,2608.5,1.46001]
[1752006230403,2.69129307,2608.6,2608.5,1.46001]
[1752006230702,3.45787307,2608.6,2608.5,1.46001]
[1752006232098,0.76661,2608.5,2608.4,1.42341]
[1752006232298,1.44941,2608.5,2608.4,1.42341]
[1752006232497,1.44941,2608.5,2608.4,2.06721]
[1752006233298,0.76661,2608.5,2608.4,2.06721]
[1752006233499,1.44941,2608.5,2608.4,2.06721]
[1752006233703,27.53341,2608.5,2608.4,0.6438]
[1752006233903,32.03311,2608.5,2608.4,0.6438]
[1752006234107,32.03311,2608.5,2608.4,1.41044]
[1752006234294,32.03311,2608.5,2608.4,0.6438]
[1752006235902,30.05841,2608.5,2608.4,0.6438]
[1752006236504,30.74121,2608.5,2608.4,0.6438]
[1752006237606,27.53341,2608.5,2608.4,0.6438]
[1752006239409,30.74121,2608.5,2608.4,0.6438]
[1752006240708,30.74121,2608.5,2608.4,1.41044]
[1752006241007,30.73321,2608.5,2608.4,0.6438]
[1752006241208,3.97441,2608.5,2608.4,1.5937]
[1752006242305,4.65721,2608.5,2608.4,2.36034]
[1752006242501,3.97441,2608.5,2608.4,2.36034]
[1752006242714,0.76659,2608.7,2608.6,0.76655]
[1752006242908,26.84059,2608.7,2608.6,2.36025]
[1752006243108,3.97433,2608.8,2608.7,0.76655]
[1752006243303,30.04833,2608.8,2608.7,1.41035]
[1752006243509,30.04833,2608.8,2608.7,2.99325]
[1752006244211,3.97433,2608.8,2608.7,2.99325]
[1752006244414,30.05233,2608.8,2608.7,2.99325]
[1752006244813,26.84453,2608.8,2608.7,2.99325]
[1752006245214,27.52733,2608.8,2608.7,2.99325]
[1752006245512,1.44933,2608.8,2608.7,2.04335]
[1752006245821,0.76655,2608.7,2608.6,0.76656]
[1752006246016,1.44935,2608.7,2608.6,0.76656]
[1752006246215,1.44935,2608.7,2608.6,1.41036]
[1752006246412,3.97434,2608.8,2608.7,0.76655]
[1752006246613,30.05234,2608.8,2608.7,1.41035]
[1752006246816,30.05234,2608.8,2608.7,2.36025]
[1752006247316,30.73514,2608.8,2608.7,2.36025]
[1752006247510,30.05234,2608.8,2608.7,2.36025]
[1752006249420,3.97434,2608.8,2608.7,2.36025]
[1752006249721,3.2078,2608.8,2608.7,2.36025]
[1752006249921,29.2878,2608.8,2608.7,2.36025]
[1752006250219,26.08,2608.8,2608.7,2.36025]
[1752006251221,26.84652,2608.8,2608.7,2.36025]
[1752006252812,0.7665,2609.0,2608.9,0.76646]
[1752006253016,27.5233,2609.0,2608.9,2.36016]
[1752006253214,26.8405,2609.0,2608.9,2.36016]
[1752006253417,27.5233,2609.0,2608.9,2.36016]
[1752006253613,26.8405,2609.0,2608.9,2.36016]
[1752006253823,27.5233,2609.0,2608.9,1.41026]
[1752006254822,26.8405,2609.0,2608.9,1.41026]
[1752006255322,27.5233,2609.0,2608.9,1.41026]
[1752006255512,27.5233,2609.0,2608.9,0.76646]
[1752006255820,27.5233,2609.0,2608.9,1.41026]
[1752006256019,28.84269307,2609.0,2608.9,1.41026]
[1752006256618,30.13409307,2609.0,2608.9,1.41026]
[1752006260128,30.13409307,2609.0,2608.9,0.6438]
[1752006260423,30.13409307,2609.0,2608.7,0.76652]
[1752006260424,0.76652,2608.8,2608.7,0.76652]
[1752006260618,4.5107,2608.9,2608.8,0.76652]
[1752006260819,29.2788,2608.9,2608.8,2.36562]
[1752006262419,3.2078,2608.9,2608.8,2.36562]
[1752006262625,3.97423,2609.2,2609.1,0.76643]
[1752006262825,30.71843,2609.2,2609.1,1.41563]
[1752006263426,30.71843,2609.2,2609.1,2.39193]
[1752006264225,30.71843,2609.2,2609.1,1.41563]
[1752006265224,3.874,2609.2,2609.1,2.39193]
[1752006265428,26.081,2609.3,2609.1,2.39193]
[1752006265730,0.76633,2609.5,2609.4,0.76634]
[1752006265928,26.7472,2609.5,2609.4,2.39184]
[1752006266228,8.05304453,2609.6,2609.4,2.39184]
[1752006266229,7.28673453,2609.6,2609.5,0.76631]
[1752006266430,34.04093453,2609.6,2609.5,1.41551]
[1752006266730,34.04093453,2609.6,2609.5,2.39181]
[1752006267231,7.95293453,2609.6,2609.5,2.39181]
[1752006267430,30.6108,2609.6,2609.5,2.39181]
[1752006267631,27.403,2609.6,2609.5,2.39181]
[1752006267833,0.6662,2609.6,2609.5,2.39181]
[1752006268031,60.10367453,2609.8,2609.7,0.76626]
[1752006268232,30.96967453,2609.8,2609.7,1.41546]
[1752006268432,31.63587453,2609.8,2609.7,1.41546]
[1752006268727,28.20574,2609.8,2609.7,1.41546]
[1752006269632,27.4395,2609.8,2609.7,1.41546]
[1752006270225,26.7713,2609.8,2609.7,2.39176]
[1752006270826,4.52719307,2609.9,2609.8,0.76623]
[1752006270827,3.2078,2609.9,2609.8,0.76623]
[1752006271132,29.2918,2609.9,2609.8,2.39173]
[1752006271532,29.958,2609.9,2609.8,2.39173]
[1752006272334,3.874,2609.9,2609.8,2.39173]
[1752006272534,29.959,2609.9,2609.8,2.39173]
[1752006273133,26.7492,2609.9,2609.8,2.39173]
[1752006275937,26.7452,2609.9,2609.8,2.39173]
[1752006277636,3.2078,2610.1,2610.0,0.76617]
[1752006277840,3.2078,2610.1,2610.0,2.39167]
[1752006278034,3.2078,2610.4,2610.1,0.76614]
[1752006278231,26.075,2610.3,2610.0,3.23477307]
[1752006278434,61.84893453,2610.7,2610.3,0.76608]
[1752006278643,3.2078,2610.7,2610.6,1.41519]
[1752006278940,3.874,2610.7,2610.6,1.12776957]
[1752006279339,3.874,2610.7,2610.6,0.76599]
[1752006279534,4.63996,2610.7,2610.6,1.41519]
[1752006279739,6.91396,2610.7,2610.6,0.76599]
[1752006281742,33.55039307,2610.7,2610.6,0.76599]
[1752006282136,34.31635307,2610.7,2610.6,0.76599]
[1752006282537,34.31635307,2610.7,2610.6,1.41519]
[1752006282737,34.31635307,2610.7,2610.6,0.76599]
[1752006283734,8.23335307,2610.7,2610.6,0.76599]
[1752006283937,8.23335307,2610.7,2610.6,1.41519]
[1752006284137,33.54139307,2610.7,2610.6,0.76599]
[1752006284437,33.54139307,2610.7,2610.6,1.41519]
[1752006284641,32.53219307,2610.7,2610.6,1.41519]
[1752006284842,31.2128,2610.7,2610.6,1.41519]
[1752006285238,31.97876,2610.7,2610.6,1.41519]
[1752006285438,31.97576,2610.7,2610.6,1.41519]
[1752006286742,3.2078,2611.1,2611.0,0.76584]
[1752006286934,31.37807,2611.1,2611.0,0.76584]
[1752006288147,5.30707,2611.1,2611.0,0.76584]
[1752006288445,31.39307,2611.1,2611.0,0.76584]
[1752006288846,29.956,2611.1,2611.0,0.76584]
[1752006289744,31.2457,2611.1,2611.0,0.76584]
[1752006290043,31.2427,2611.1,2611.0,0.76584]
[1752006290250,29.953,2611.1,2611.0,0.76584]
[1752006290445,0.6512,2611.2,2611.1,0.76584]
[1752006290645,28.17832,2611.2,2611.1,0.76584]
[1752006291047,0.76579,2611.4,2611.3,0.76577]
[1752006291247,2.11839,2611.4,2611.3,0.76577]
[1752006291546,0.76579,2611.3,2611.2,1.41239]
[1752006291948,26.8273,2611.3,2610.9,0.9763]
[1752006292147,26.8273,2611.3,2610.8,7.72491307]
[1752006292148,28.85702,2611.3,2611.2,0.76582]
[1752006292850,28.85702,2611.3,2611.2,1.43442]
[1752006293149,29.89492,2611.3,2611.2,1.43442]
[1752006293349,29.89492,2611.3,2611.2,0.76582]
[1752006293647,29.89492,2611.3,2611.2,1.43442]
[1752006294047,33.10272,2611.3,2611.2,1.43442]
[1752006294351,33.10272,2611.3,2611.2,0.6686]
[1752006294949,0.76584,2611.1,2611.0,1.36270143]
[1752006295148,1.44914,2611.1,2611.0,0.76587]
[1752006295449,27.58914,2611.1,2611.0,1.43447]
[1752006295649,27.58914,2611.1,2611.0,1.12505764]
[1752006296251,0.6833,2611.1,2611.0,1.79365764]
[1752006296545,2.2078,2611.3,2611.2,0.76582]
[1752006296749,2.2078,2611.3,2611.2,3.71911307]
[1752006296950,2.2078,2611.3,2611.2,4.07828209]
[1752006297545,3.97349,2611.7,2611.6,0.7657]
[1752006297746,30.80479,2611.7,2611.6,0.7657]
[1752006297949,30.80379,2611.7,2611.6,1.4343]
[1752006298151,5.69467,2611.7,2611.6,1.4343]
[1752006298351,31.84067,2611.7,2611.6,1.4343]
[1752006299649,31.075,2611.7,2611.6,1.4343]
[1752006299852,4.929,2611.7,2611.6,1.4343]
[1752006300054,32.3982,2611.7,2611.6,1.4343]
[1752006300755,33.16387,2611.7,2611.6,1.4343]
[1752006301351,33.16387,2611.7,2611.6,0.7657]
[1752006301352,34.48326307,2611.7,2611.6,0.7657]
[1752006301656,33.71159307,2611.7,2611.6,0.7657]
[1752006302052,34.47726307,2611.7,2611.6,0.7657]
[1752006303253,0.76573,2611.6,2611.5,0.76571]
[1752006303455,2.81893,2611.6,2611.5,0.76571]
[1752006303657,3.85683,2611.6,2611.5,0.76571]
[1752006304352,3.0911,2611.6,2611.5,0.76571]
[1752006304857,2.0532,2611.6,2611.5,1.43431]
[1752006305655,2.8189,2611.6,2611.5,1.79343121]
[1752006305857,3.2078,2611.7,2611.6,0.7657]
[1752006306057,30.78377,2611.7,2611.6,1.79341102]
[1752006306352,30.78377,2611.7,2611.6,1.12481102]
[1752006306557,30.78377,2611.7,2611.6,1.79341102]
[1752006306758,30.0181,2611.7,2611.6,1.4343]
[1752006307558,0.6833,2611.7,2611.6,1.4343]
[1752006307752,0.6833,2611.7,2611.6,1.7933888]
[1752006308652,1.40602,2611.9,2611.8,0.76564]
[1752006308857,2.08932,2611.9,2611.8,0.76564]
[1752006309155,5.01126,2612.1,2612.0,0.76558]
[1752006309358,3.2078,2612.1,2612.0,0.76558]
[1752006309555,4.65665,2612.1,2612.0,0.76558]
[1752006310258,3.8911,2612.1,2612.0,0.76558]
[1752006310557,4.65665,2612.1,2612.0,0.76558]
[1752006311662,3.8911,2612.1,2612.0,0.76558]
[1752006312058,0.6833,2612.1,2612.0,0.76558]
[1752006312256,1.39449,2612.3,2612.2,0.76552]
[1752006312463,2.07779,2612.3,2612.2,0.76552]
[1752006312960,0.76552,2612.2,2612.1,1.41903]
[1752006313866,1.44882,2612.2,2612.1,2.08763]
[1752006314558,1.44882,2612.2,2612.1,1.41903]
[1752006314760,1.44882,2612.2,2612.1,2.08763]
[1752006314960,1.44882,2612.2,2612.1,1.41903]
[1752006315358,1.44882,2612.2,2612.1,2.08763]
[1752006315559,0.6833,2612.2,2612.1,2.08763]
[1752006315864,26.87848,2612.4,2612.3,0.76549]
[1752006316157,28.18868,2612.4,2612.3,1.43409]
[1752006316564,27.4232,2612.4,2612.3,0.76549]
[1752006316765,27.4232,2612.4,2612.3,1.43409]
[1752006317062,27.4332,2612.4,2612.3,0.76549]
[1752006317363,27.4332,2612.4,2612.3,1.43409]
[1752006317364,28.19866,2612.4,2612.3,1.43409]
[1752006318168,29.23656,2612.4,2612.3,1.43409]
[1752006318361,0.76552,2612.2,2612.1,0.76555]
[1752006318667,2.48672,2612.2,2612.1,0.76555]
[1752006319067,1.44882,2612.2,2612.1,1.43415]
[1752006319562,2.48672,2612.2,2612.1,1.43415]
[1752006319762,0.76557,2612.1,2612.0,0.76555]
[1752006319960,3.80327,2612.1,2612.0,0.76555]
[1752006320569,3.80327,2612.1,2612.0,1.43415]
[1752006320765,3.80327,2612.1,2612.0,0.76555]
[1752006321069,3.80327,2612.1,2612.0,1.45255]
[1752006321268,3.0377,2612.1,2612.0,1.45255]
[1752006321472,3.80325,2612.1,2612.0,1.45255]
[1752006322968,1.6077,2612.4,2612.0,0.687]
[1752006323167,0.6529,2612.1,2611.6,3.2078]
[1752006323372,3.69719307,2612.0,2611.9,0.76559]
[1752006323573,5.61719307,2612.0,2611.9,0.76559]
[1752006324267,5.61719307,2612.0,2611.9,1.45259]
[1752006324463,5.61719307,2612.0,2611.9,0.76559]
[1752006325373,5.61719307,2612.0,2611.9,1.45259]
[1752006325571,5.61719307,2612.0,2611.9,0.76559]
[1752006326076,5.61719307,2612.0,2611.9,1.45259]
[1752006326372,5.61719307,2612.0,2611.9,0.76559]
[1752006326578,28.6674,2612.0,2611.9,1.45259]
[1752006326764,27.4003,2612.0,2611.9,0.76559]
[1752006327571,27.4003,2612.0,2611.9,1.45259]
[1752006327769,0.2853,2612.0,2611.9,1.45259]
[1752006327970,6.63793453,2612.5,2612.2,1.91381]
[1752006328176,7.40337453,2612.5,2612.2,1.45252]
[1752006328472,4.95304,2612.5,2612.4,0.76546]
[1752006328669,31.71994,2612.5,2612.4,0.76546]
[1752006328872,31.71994,2612.5,2612.4,1.45246]
[1752006329377,5.60594,2612.5,2612.4,1.45246]
[1752006329678,31.71994,2612.5,2612.4,1.45246]
[1752006329875,5.60594,2612.5,2612.4,1.45246]
[1752006330177,30.73814,2612.5,2612.4,1.45246]
[1752006331374,4.62614,2612.5,2612.4,1.45246]
[1752006331675,30.73614,2612.5,2612.4,1.45246]
[1752006332976,3.2078,2612.5,2612.4,2.49186]
[1752006333177,29.3148,2612.5,2612.4,2.49186]
[1752006333477,3.8607,2612.5,2612.4,1.45246]
[1752006334074,3.8607,2612.5,2612.4,2.49186]
[1752006334474,3.2078,2612.5,2612.4,2.49186]
[1752006334677,3.8607,2612.5,2612.4,2.49186]
[1752006335377,3.8607,2612.5,2612.4,1.45246]
[1752006335869,4.62614,2612.5,2612.4,1.45246]
[1752006336076,3.97324,2612.5,2612.4,1.45246]
[1752006336374,4.62614,2612.5,2612.4,1.45246]
[1752006336579,3.2078,2612.5,2612.4,2.49186]
[1752006336779,3.2078,2612.5,2612.4,5.14975307]
[1752006336977,3.2078,2612.8,2612.7,0.76535]
[1752006337178,3.8607,2612.8,2612.7,1.45235]
[1752006337379,3.8607,2612.8,2612.7,0.76535]
[1752006337679,4.62605,2612.8,2612.7,1.45235]
[1752006337880,5.60585,2612.8,2612.7,0.76535]
[1752006338178,4.62605,2612.8,2612.7,1.45235]
[1752006338380,4.62605,2612.8,2612.2,3.2078]
[1752006338381,0.7655,2612.4,2612.3,0.76547]
[1752006338574,3.71759307,2612.4,2612.3,0.76547]
[1752006338879,3.71759307,2612.4,2612.3,1.45247]
[1752006339187,1.6327,2612.4,2612.3,1.45247]
[1752006339479,0.6529,2612.4,2612.3,1.45247]
[1752006339978,0.6529,2612.4,2612.0,5.23022498]